[Event "Titled Tuesday Blitz December 20 Early 2022"]
[White "Beca, Rodrigo Martins"]
[Black "AttilaTurzo"]
[WhiteFideId "1954490"]
[WhiteElo "2976"]
[BlackElo "2578"]
[Result "1-0"]
[Round "06"]
[TimeControl "180+2"]
[Date "2022.12.20"]
[WhiteClock "0:00:53"]
[BlackClock "0:00:02"]

1. e4 {[%clk 0:02:54]}  c5 {[%clk 0:02:59]} 2. Nc3 {[%clk 0:02:52]}  Nc6 {[%clk 0:02:58]} 3. Bb5 {[%clk 0:02:51]}  Nd4 {[%clk 0:02:49]} 4. Nf3 {[%clk 0:02:50]}  e6 {[%clk 0:02:45]} 5. Bd3 {[%clk 0:02:40]}  Nc6 {[%clk 0:02:39]} 6. O-O {[%clk 0:02:39]}  Nf6 {[%clk 0:02:39]} 7. e5 {[%clk 0:02:33]}  Ng4 {[%clk 0:02:26]} 8. Re1 {[%clk 0:02:32]}  d6 {[%clk 0:02:25]} 9. Bb5 {[%clk 0:02:28]}  Bd7 {[%clk 0:02:19]} 10. exd6 {[%clk 0:02:19]}  Bxd6 {[%clk 0:02:18]} 11. Ne4 {[%clk 0:02:19]}  Be7 {[%clk 0:02:16]} 12. h3 {[%clk 0:02:16]}  Nf6 {[%clk 0:02:14]} 13. d3 {[%clk 0:02:13]}  O-O {[%clk 0:02:09]} 14. Ng3 {[%clk 0:02:10]}  a6 {[%clk 0:02:03]} 15. Bxc6 {[%clk 0:02:08]}  Bxc6 {[%clk 0:02:02]} 16. Ne5 {[%clk 0:02:08]}  Rc8 {[%clk 0:01:58]} 17. Nxc6 {[%clk 0:02:05]}  Rxc6 {[%clk 0:01:58]} 18. b3 {[%clk 0:02:03]}  Nd5 {[%clk 0:01:55]} 19. Bb2 {[%clk 0:01:54]}  Bf6 {[%clk 0:01:55]} 20. Bxf6 {[%clk 0:01:52]}  Nxf6 {[%clk 0:01:45]} 21. Qf3 {[%clk 0:01:49]}  Qd5 {[%clk 0:01:44]} 22. Ne4 {[%clk 0:01:31]}  Nd7 {[%clk 0:01:20]} 23. Qg3 {[%clk 0:01:26]}  h6 {[%clk 0:01:14]} 24. a4 {[%clk 0:01:19]}  b6 {[%clk 0:01:05]} 25. Nd2 {[%clk 0:01:09]}  e5 {[%clk 0:01:01]} 26. Nc4 {[%clk 0:01:08]}  Re6 {[%clk 0:00:51]} 27. Ne3 {[%clk 0:01:05]}  Qc6 {[%clk 0:00:19]} 28. Nf5 {[%clk 0:01:04]}  g5 {[%clk 0:00:19]} 29. Re3 {[%clk 0:00:59]}  Kh7 {[%clk 0:00:18]} 30. Rae1 {[%clk 0:00:56]}  f6 {[%clk 0:00:17]} 31. Qg4 {[%clk 0:00:55]}  Kg6 {[%clk 0:00:08]} 32. Nh4+ {[%clk 0:00:54]}  Kg7 {[%clk 0:00:04]} 33. Rg3 {[%clk 0:00:54]}  Qd6 {[%clk 0:00:02]} 34. Nf5+ {[%clk 0:00:53]} 1-0


[Site "https://www.chess.com"]

[Event "Titled Tuesday Blitz December 20 Early 2022"]
[White "Begmuratov, Khumoyun"]
[Black "Alphafischer2019"]
[WhiteFideId "14210207"]
[WhiteElo "2387"]
[BlackElo "2543"]
[Result "0-1"]
[Round "06"]
[TimeControl "180+2"]
[Date "2022.12.20"]
[WhiteClock "0:00:04"]
[BlackClock "0:00:06"]

1. e4 {[%clk 0:03:00]}  c5 {[%clk 0:03:00]} 2. Nc3 {[%clk 0:02:59]}  Nc6 {[%clk 0:03:00]} 3. Bb5 {[%clk 0:03:00]}  Nd4 {[%clk 0:03:00]} 4. Nf3 {[%clk 0:02:59]}  g6 {[%clk 0:03:00]} 5. Nxd4 {[%clk 0:02:55]}  cxd4 {[%clk 0:03:00]} 6. Ne2 {[%clk 0:02:56]}  Bg7 {[%clk 0:02:57]} 7. c3 {[%clk 0:02:54]}  dxc3 {[%clk 0:02:38]} 8. dxc3 {[%clk 0:02:55]}  Nf6 {[%clk 0:02:36]} 9. Bd3 {[%clk 0:02:54]}  O-O {[%clk 0:02:35]} 10. O-O {[%clk 0:02:54]}  d6 {[%clk 0:02:30]} 11. c4 {[%clk 0:02:52]}  Nd7 {[%clk 0:02:26]} 12. Rb1 {[%clk 0:02:47]}  b6 {[%clk 0:02:19]} 13. b3 {[%clk 0:02:46]}  Bb7 {[%clk 0:02:16]} 14. Bb2 {[%clk 0:02:46]}  Bxb2 {[%clk 0:02:10]} 15. Rxb2 {[%clk 0:02:47]}  Nc5 {[%clk 0:02:10]} 16. Nc3 {[%clk 0:02:48]}  e6 {[%clk 0:02:09]} 17. Rd2 {[%clk 0:02:45]}  Qf6 {[%clk 0:02:09]} 18. Qc2 {[%clk 0:02:41]}  Rfd8 {[%clk 0:02:05]} 19. Be2 {[%clk 0:02:34]}  a6 {[%clk 0:01:59]} 20. b4 {[%clk 0:02:31]}  Nd7 {[%clk 0:01:52]} 21. Rxd6 {[%clk 0:02:31]}  Rac8 {[%clk 0:00:57]} 22. Rfd1 {[%clk 0:02:27]}  Ne5 {[%clk 0:00:50]} 23. c5 {[%clk 0:02:14]}  bxc5 {[%clk 0:00:47]} 24. bxc5 {[%clk 0:02:15]}  Rxd6 {[%clk 0:00:47]} 25. cxd6 {[%clk 0:02:08]}  Nd7 {[%clk 0:00:42]} 26. Qb3 {[%clk 0:02:08]}  Ba8 {[%clk 0:00:35]} 27. Na4 {[%clk 0:02:03]}  Bxe4 {[%clk 0:00:33]} 28. Bxa6 {[%clk 0:02:02]}  Bc2 {[%clk 0:00:30]} 29. Qb5 {[%clk 0:01:46]}  Bxd1 {[%clk 0:00:25]} 30. Bxc8 {[%clk 0:01:03]}  Bxa4 {[%clk 0:00:23]} 31. Qb1 {[%clk 0:01:01]}  Qd4 {[%clk 0:00:20]} 32. Bxd7 {[%clk 0:00:52]}  Bxd7 {[%clk 0:00:20]} 33. Qb8+ {[%clk 0:00:53]}  Kg7 {[%clk 0:00:20]} 34. h3 {[%clk 0:00:53]}  Qa1+ {[%clk 0:00:19]} 35. Kh2 {[%clk 0:00:53]}  Qe5+ {[%clk 0:00:20]} 36. Kg1 {[%clk 0:00:45]}  Qe1+ {[%clk 0:00:18]} 37. Kh2 {[%clk 0:00:45]}  Qxf2 {[%clk 0:00:19]} 38. Qc7 {[%clk 0:00:45]}  Qf4+ {[%clk 0:00:18]} 39. Kg1 {[%clk 0:00:44]}  Qd4+ {[%clk 0:00:17]} 40. Kh2 {[%clk 0:00:44]}  Qa4 {[%clk 0:00:16]} 41. Qc3+ {[%clk 0:00:43]}  f6 {[%clk 0:00:15]} 42. Qc7 {[%clk 0:00:44]}  Qc6 {[%clk 0:00:14]} 43. Qb8 {[%clk 0:00:41]}  g5 {[%clk 0:00:10]} 44. h4 {[%clk 0:00:34]}  gxh4 {[%clk 0:00:10]} 45. Qb4 {[%clk 0:00:29]}  e5 {[%clk 0:00:07]} 46. a3 {[%clk 0:00:22]}  h3 {[%clk 0:00:07]} 47. gxh3 {[%clk 0:00:19]}  Qc2+ {[%clk 0:00:08]} 48. Kg3 {[%clk 0:00:19]}  Qd3+ {[%clk 0:00:08]} 49. Kf2 {[%clk 0:00:20]}  Qxh3 {[%clk 0:00:08]} 50. a4 {[%clk 0:00:19]}  Qh2+ {[%clk 0:00:08]} 51. Ke1 {[%clk 0:00:09]}  Qg1+ {[%clk 0:00:07]} 52. Ke2 {[%clk 0:00:10]}  Qh2+ {[%clk 0:00:06]} 53. Ke1 {[%clk 0:00:10]}  Qf4 {[%clk 0:00:05]} 54. Qb7 {[%clk 0:00:04]}  Qxa4 {[%clk 0:00:04]} 55. Qg2+ {[%clk 0:00:04]}  Kf7 {[%clk 0:00:05]} 56. Qd5+ {[%clk 0:00:04]}  Be6 {[%clk 0:00:05]} 57. Qb7+ {[%clk 0:00:04]}  Qd7 {[%clk 0:00:06]} 58. Qb4 {[%clk 0:00:05]}  f5 {[%clk 0:00:05]} 59. Qb6 {[%clk 0:00:04]}  e4 {[%clk 0:00:05]} 60. Kf2 {[%clk 0:00:04]}  Bd5 {[%clk 0:00:05]} 61. Qc5 {[%clk 0:00:04]}  Ke6 {[%clk 0:00:06]} 62. Qe3 {[%clk 0:00:04]}  Qxd6 {[%clk 0:00:06]} 63. Qh6+ {[%clk 0:00:04]}  Kd7 {[%clk 0:00:07]} 64. Qxh7+ {[%clk 0:00:05]}  Kc6 {[%clk 0:00:07]} 65. Qh8 {[%clk 0:00:04]}  Qd7 {[%clk 0:00:06]} 66. Qc3+ {[%clk 0:00:03]}  Kd6 {[%clk 0:00:06]} 67. Qb4+ {[%clk 0:00:04]}  Ke6 {[%clk 0:00:07]} 68. Qb6+ {[%clk 0:00:03]}  Bc6 {[%clk 0:00:07]} 69. Qb4 {[%clk 0:00:03]}  Qd5 {[%clk 0:00:08]} 70. Qf8 {[%clk 0:00:02]}  Qd2+ {[%clk 0:00:08]} 71. Kg3 {[%clk 0:00:03]}  Qg5+ {[%clk 0:00:08]} 72. Kh2 {[%clk 0:00:02]}  e3 {[%clk 0:00:07]} 73. Qc8+ {[%clk 0:00:01]}  Bd7 {[%clk 0:00:07]} 74. Qc4+ {[%clk 0:00:02]}  Kf6 {[%clk 0:00:07]} 75. Qd4+ {[%clk 0:00:02]}  Ke7 {[%clk 0:00:08]} 76. Qc5+ {[%clk 0:00:02]}  Ke6 {[%clk 0:00:06]} 77. Qc4+ {[%clk 0:00:02]}  Kf6 {[%clk 0:00:04]} 78. Qd4+ {[%clk 0:00:03]}  Ke7 {[%clk 0:00:04]} 79. Qc5+ {[%clk 0:00:02]}  Kf7 {[%clk 0:00:05]} 80. Qd5+ {[%clk 0:00:03]}  Be6 {[%clk 0:00:06]} 81. Qb7+ {[%clk 0:00:03]}  Kf6 {[%clk 0:00:06]} 82. Qb2+ {[%clk 0:00:03]}  Kg6 {[%clk 0:00:07]} 83. Qe5 {[%clk 0:00:03]}  Qh4+ {[%clk 0:00:07]} 84. Kg1 {[%clk 0:00:02]}  Qf2+ {[%clk 0:00:07]} 85. Kh1 {[%clk 0:00:03]}  Qh4+ {[%clk 0:00:06]} 86. Kg1 {[%clk 0:00:03]}  Qe4 {[%clk 0:00:07]} 87. Qg3+ {[%clk 0:00:02]}  Qg4 {[%clk 0:00:07]} 88. Kh1 {[%clk 0:00:03]}  Bd5+ {[%clk 0:00:06]} 89. Kh2 {[%clk 0:00:03]}  Qxg3+ {[%clk 0:00:06]} 90. Kxg3 {[%clk 0:00:04]} 0-1


[Site "https://www.chess.com"]

[Event "Titled Tuesday Blitz December 20 Early 2022"]
[White "Benamar, Benious"]
[Black "Skoularikis, Fotios"]
[WhiteFideId "45118841"]
[BlackFideId "4200500"]
[WhiteElo "1136"]
[BlackElo "2223"]
[Result "1-0"]
[Round "06"]
[TimeControl "180+2"]
[Date "2022.12.20"]
[WhiteClock "0:00:36"]
[BlackClock "0:00:35"]

1. d4 {[%clk 0:03:00]}  Nf6 {[%clk 0:02:59]} 2. Nf3 {[%clk 0:03:01]}  d5 {[%clk 0:02:59]} 3. Bf4 {[%clk 0:03:01]}  Bf5 {[%clk 0:02:54]} 4. c4 {[%clk 0:03:00]}  c6 {[%clk 0:02:51]} 5. e3 {[%clk 0:02:58]}  e6 {[%clk 0:02:50]} 6. Nc3 {[%clk 0:02:57]}  Nbd7 {[%clk 0:02:46]} 7. Qb3 {[%clk 0:02:57]}  Qb6 {[%clk 0:02:43]} 8. c5 {[%clk 0:02:56]}  Qxb3 {[%clk 0:02:30]} 9. axb3 {[%clk 0:02:57]}  Nh5 {[%clk 0:02:30]} 10. Be5 {[%clk 0:02:55]}  f6 {[%clk 0:02:19]} 11. Bc7 {[%clk 0:02:50]}  Rc8 {[%clk 0:02:03]} 12. Bd6 {[%clk 0:02:49]}  Bxd6 {[%clk 0:01:47]} 13. cxd6 {[%clk 0:02:50]}  g5 {[%clk 0:01:37]} 14. Rxa7 {[%clk 0:02:49]}  Rb8 {[%clk 0:01:37]} 15. b4 {[%clk 0:02:37]}  Kf7 {[%clk 0:01:30]} 16. Be2 {[%clk 0:02:35]}  Ng7 {[%clk 0:01:29]} 17. Na4 {[%clk 0:02:32]}  Ra8 {[%clk 0:01:20]} 18. Rxb7 {[%clk 0:02:29]}  Rxa4 {[%clk 0:01:19]} 19. Rxd7+ {[%clk 0:02:29]}  Kg6 {[%clk 0:01:19]} 20. h4 {[%clk 0:01:40]}  Rxb4 {[%clk 0:00:47]} 21. hxg5 {[%clk 0:01:34]}  Rxb2 {[%clk 0:00:45]} 22. gxf6 {[%clk 0:01:26]}  Kxf6 {[%clk 0:00:44]} 23. g4 {[%clk 0:00:58]}  Rb1+ {[%clk 0:00:37]} 24. Bd1 {[%clk 0:00:55]}  Be4 {[%clk 0:00:38]} 25. g5+ {[%clk 0:00:41]}  Kf5 {[%clk 0:00:35]} 26. Rf7+ {[%clk 0:00:37]}  Kg6 {[%clk 0:00:35]} 27. Rf6# {[%clk 0:00:36]} 1-0


[Site "https://www.chess.com"]

[Event "Titled Tuesday Blitz December 20 Early 2022"]
[White "BetonCarlsen"]
[Black "Shockerlover"]
[WhiteElo "2216"]
[BlackElo "1948"]
[Result "1-0"]
[Round "06"]
[TimeControl "180+2"]
[Date "2022.12.20"]
[WhiteClock "0:01:02"]
[BlackClock "0:00:01"]

1. d4 {[%clk 0:02:52]}  b6 {[%clk 0:03:00]} 2. e4 {[%clk 0:02:49]}  Bb7 {[%clk 0:03:00]} 3. Bd3 {[%clk 0:02:48]}  g6 {[%clk 0:03:01]} 4. Nf3 {[%clk 0:02:45]}  Bg7 {[%clk 0:03:02]} 5. O-O {[%clk 0:02:45]}  d6 {[%clk 0:03:00]} 6. Re1 {[%clk 0:02:45]}  e6 {[%clk 0:02:59]} 7. Nc3 {[%clk 0:02:44]}  Ne7 {[%clk 0:02:59]} 8. Ne2 {[%clk 0:02:43]}  O-O {[%clk 0:02:57]} 9. Ng3 {[%clk 0:02:42]}  c5 {[%clk 0:02:58]} 10. c3 {[%clk 0:02:42]}  Nbc6 {[%clk 0:02:56]} 11. Be3 {[%clk 0:02:41]}  cxd4 {[%clk 0:02:55]} 12. cxd4 {[%clk 0:02:40]}  e5 {[%clk 0:02:51]} 13. d5 {[%clk 0:02:38]}  Nb4 {[%clk 0:02:49]} 14. Bb1 {[%clk 0:02:36]}  Na6 {[%clk 0:02:32]} 15. a3 {[%clk 0:02:31]}  Rc8 {[%clk 0:02:31]} 16. h4 {[%clk 0:02:29]}  Nc5 {[%clk 0:02:29]} 17. b4 {[%clk 0:02:29]}  Nd7 {[%clk 0:02:29]} 18. h5 {[%clk 0:02:28]}  Nf6 {[%clk 0:02:28]} 19. Bd3 {[%clk 0:02:21]}  Ng4 {[%clk 0:02:27]} 20. Bd2 {[%clk 0:02:18]}  Qd7 {[%clk 0:02:14]} 21. hxg6 {[%clk 0:02:13]}  fxg6 {[%clk 0:01:57]} 22. Rc1 {[%clk 0:02:10]}  Rf7 {[%clk 0:01:31]} 23. Qe2 {[%clk 0:01:55]}  Rcf8 {[%clk 0:01:29]} 24. Rf1 {[%clk 0:01:33]}  Kh8 {[%clk 0:01:28]} 25. Be1 {[%clk 0:01:29]}  Ng8 {[%clk 0:01:27]} 26. Ng5 {[%clk 0:01:27]}  Rf4 {[%clk 0:01:10]} 27. Ne6 {[%clk 0:01:25]}  Qe7 {[%clk 0:00:19]} 28. Nxf4 {[%clk 0:01:19]}  Rxf4 {[%clk 0:00:15]} 29. Bd2 {[%clk 0:01:18]}  Qh4 {[%clk 0:00:14]} 30. Rfd1 {[%clk 0:01:08]}  Qh2+ {[%clk 0:00:13]} 31. Kf1 {[%clk 0:01:07]}  Qxg3 {[%clk 0:00:11]} 32. Bxf4 {[%clk 0:01:07]}  Qxf4 {[%clk 0:00:10]} 33. g3 {[%clk 0:01:06]}  Qf6 {[%clk 0:00:09]} 34. Qxg4 {[%clk 0:01:06]}  Bh6 {[%clk 0:00:07]} 35. Rc7 {[%clk 0:01:04]}  Ba6 {[%clk 0:00:01]} 36. Bxa6 {[%clk 0:01:02]} 1-0


[Site "https://www.chess.com"]

[Event "Titled Tuesday Blitz December 20 Early 2022"]
[White "BlueWizzard"]
[Black "Hasangatin_Ramil"]
[WhiteElo "2862"]
[BlackElo "2705"]
[Result "0-1"]
[Round "06"]
[TimeControl "180+2"]
[Date "2022.12.20"]
[WhiteClock "0:00:25"]
[BlackClock "0:00:06"]

1. d4 {[%clk 0:03:00]}  d6 {[%clk 0:02:56]} 2. Nc3 {[%clk 0:03:00]}  e5 {[%clk 0:02:54]} 3. Nf3 {[%clk 0:02:59]}  Nd7 {[%clk 0:02:50]} 4. g4 {[%clk 0:02:59]}  exd4 {[%clk 0:02:44]} 5. Qxd4 {[%clk 0:02:57]}  Ne7 {[%clk 0:02:32]} 6. Bf4 {[%clk 0:02:50]}  Nc6 {[%clk 0:02:29]} 7. Qd2 {[%clk 0:02:47]}  Nde5 {[%clk 0:02:28]} 8. h3 {[%clk 0:02:39]}  Nxf3+ {[%clk 0:02:27]} 9. exf3 {[%clk 0:02:40]}  Ne5 {[%clk 0:02:23]} 10. O-O-O {[%clk 0:02:39]}  Be7 {[%clk 0:02:17]} 11. Bg3 {[%clk 0:02:16]}  O-O {[%clk 0:01:43]} 12. f4 {[%clk 0:02:14]}  Nd7 {[%clk 0:01:39]} 13. Kb1 {[%clk 0:02:10]}  Bh4 {[%clk 0:01:34]} 14. Bxh4 {[%clk 0:01:54]}  Qxh4 {[%clk 0:01:33]} 15. Nd5 {[%clk 0:01:55]}  c6 {[%clk 0:01:22]} 16. Nc7 {[%clk 0:01:47]}  Rb8 {[%clk 0:01:22]} 17. Qxd6 {[%clk 0:01:48]}  Qxf2 {[%clk 0:01:15]} 18. Bc4 {[%clk 0:01:41]}  Qc5 {[%clk 0:01:12]} 19. Bb3 {[%clk 0:01:35]}  Qxd6 {[%clk 0:01:11]} 20. Rxd6 {[%clk 0:01:36]}  Nc5 {[%clk 0:01:04]} 21. Re1 {[%clk 0:01:25]}  h5 {[%clk 0:00:55]} 22. f5 {[%clk 0:01:25]}  Bd7 {[%clk 0:00:42]} 23. Re5 {[%clk 0:01:14]}  b6 {[%clk 0:00:39]} 24. f6 {[%clk 0:00:58]}  Rbc8 {[%clk 0:00:19]} 25. Rg5 {[%clk 0:00:50]}  Rxc7 {[%clk 0:00:16]} 26. Rxg7+ {[%clk 0:00:44]}  Kh8 {[%clk 0:00:16]} 27. gxh5 {[%clk 0:00:31]}  Nxb3 {[%clk 0:00:11]} 28. axb3 {[%clk 0:00:31]}  Bf5 {[%clk 0:00:10]} 29. Kc1 {[%clk 0:00:26]}  c5 {[%clk 0:00:06]} 30. Rg5 {[%clk 0:00:17]}  Rd7 {[%clk 0:00:05]} 31. Rxd7 {[%clk 0:00:14]}  Bxd7 {[%clk 0:00:05]} 32. Rg7 {[%clk 0:00:14]}  Be6 {[%clk 0:00:06]} 33. Kd2 {[%clk 0:00:14]}  Rd8+ {[%clk 0:00:06]} 34. Ke3 {[%clk 0:00:14]}  Rd5 {[%clk 0:00:06]} 35. h6 {[%clk 0:00:14]}  Rh5 {[%clk 0:00:06]} 36. h7 {[%clk 0:00:14]}  Rxh7 {[%clk 0:00:06]} 37. Rg2 {[%clk 0:00:15]}  Rxh3+ {[%clk 0:00:06]} 38. Kf4 {[%clk 0:00:16]}  Rh6 {[%clk 0:00:06]} 39. Ke5 {[%clk 0:00:16]}  Rh5+ {[%clk 0:00:06]} 40. Kd6 {[%clk 0:00:17]}  Kh7 {[%clk 0:00:06]} 41. Ke7 {[%clk 0:00:17]}  Kh6 {[%clk 0:00:06]} 42. Re2 {[%clk 0:00:17]}  Rf5 {[%clk 0:00:05]} 43. Rg2 {[%clk 0:00:17]}  Rg5 {[%clk 0:00:05]} 44. Rh2+ {[%clk 0:00:16]}  Kg6 {[%clk 0:00:05]} 45. Rh8 {[%clk 0:00:16]}  Kf5 {[%clk 0:00:04]} 46. Ra8 {[%clk 0:00:16]}  a5 {[%clk 0:00:03]} 47. Ra6 {[%clk 0:00:16]}  Rg2 {[%clk 0:00:03]} 48. Rxb6 {[%clk 0:00:15]}  Rxc2 {[%clk 0:00:04]} 49. Rb5 {[%clk 0:00:15]}  Rxb2 {[%clk 0:00:03]} 50. Rxc5+ {[%clk 0:00:16]}  Kg6 {[%clk 0:00:04]} 51. Rxa5 {[%clk 0:00:16]}  Rxb3 {[%clk 0:00:04]} 52. Ra4 {[%clk 0:00:15]}  Rb7+ {[%clk 0:00:04]} 53. Kd6 {[%clk 0:00:16]}  Kxf6 {[%clk 0:00:05]} 54. Rf4+ {[%clk 0:00:16]}  Kg5 {[%clk 0:00:04]} 55. Rf1 {[%clk 0:00:16]}  Rd7+ {[%clk 0:00:04]} 56. Kc6 {[%clk 0:00:17]}  Rd5 {[%clk 0:00:04]} 57. Re1 {[%clk 0:00:18]}  Rf5 {[%clk 0:00:04]} 58. Rg1+ {[%clk 0:00:19]}  Kf6 {[%clk 0:00:05]} 59. Re1 {[%clk 0:00:20]}  Rf4 {[%clk 0:00:05]} 60. Kd6 {[%clk 0:00:21]}  Kf5 {[%clk 0:00:05]} 61. Re5+ {[%clk 0:00:21]}  Kf6 {[%clk 0:00:06]} 62. Re1 {[%clk 0:00:22]}  Rd4+ {[%clk 0:00:06]} 63. Kc5 {[%clk 0:00:22]}  Rd2 {[%clk 0:00:06]} 64. Kb4 {[%clk 0:00:22]}  Ke7 {[%clk 0:00:07]} 65. Kc3 {[%clk 0:00:22]}  Rd6 {[%clk 0:00:07]} 66. Kb4 {[%clk 0:00:23]}  f5 {[%clk 0:00:08]} 67. Kc5 {[%clk 0:00:24]}  Rd5+ {[%clk 0:00:08]} 68. Kc6 {[%clk 0:00:23]}  Kf6 {[%clk 0:00:09]} 69. Rh1 {[%clk 0:00:23]}  f4 {[%clk 0:00:08]} 70. Rh6+ {[%clk 0:00:24]}  Ke5 {[%clk 0:00:08]} 71. Rh5+ {[%clk 0:00:24]}  Bf5 {[%clk 0:00:08]} 72. Rh6 {[%clk 0:00:25]}  Rd4 {[%clk 0:00:08]} 73. Kc5 {[%clk 0:00:24]}  Rd2 {[%clk 0:00:08]} 74. Rh8 {[%clk 0:00:24]}  f3 {[%clk 0:00:08]} 75. Rd8 {[%clk 0:00:25]}  Rxd8 {[%clk 0:00:06]} 0-1


[Site "https://www.chess.com"]

[Event "Titled Tuesday Blitz December 20 Early 2022"]
[White "Cag, Ceyda"]
[Black "Nenezic, Marko"]
[WhiteFideId "34571477"]
[BlackFideId "912123"]
[WhiteElo "2157"]
[BlackElo "2514"]
[Result "1/2-1/2"]
[Round "06"]
[TimeControl "180+2"]
[Date "2022.12.20"]
[WhiteClock "0:00:04"]
[BlackClock "0:00:10"]

1. e4 {[%clk 0:02:57]}  e6 {[%clk 0:02:59]} 2. Nf3 {[%clk 0:02:58]}  d5 {[%clk 0:03:00]} 3. Nc3 {[%clk 0:02:58]}  Nf6 {[%clk 0:02:59]} 4. e5 {[%clk 0:02:58]}  Nfd7 {[%clk 0:02:59]} 5. d4 {[%clk 0:02:59]}  c5 {[%clk 0:02:59]} 6. Bg5 {[%clk 0:02:59]}  Be7 {[%clk 0:02:57]} 7. Bxe7 {[%clk 0:02:57]}  Qxe7 {[%clk 0:02:57]} 8. Nb5 {[%clk 0:02:58]}  O-O {[%clk 0:02:51]} 9. Nc7 {[%clk 0:02:51]}  cxd4 {[%clk 0:02:51]} 10. Nxd4 {[%clk 0:02:37]}  Qb4+ {[%clk 0:02:48]} 11. Qd2 {[%clk 0:02:01]}  Qxb2 {[%clk 0:02:45]} 12. Rd1 {[%clk 0:01:56]}  Nxe5 {[%clk 0:02:19]} 13. Nxa8 {[%clk 0:01:53]}  Nbc6 {[%clk 0:02:14]} 14. Nxc6 {[%clk 0:01:35]}  Nxc6 {[%clk 0:02:13]} 15. Nc7 {[%clk 0:01:32]}  Qe5+ {[%clk 0:02:13]} 16. Be2 {[%clk 0:01:23]}  Qxc7 {[%clk 0:02:12]} 17. O-O {[%clk 0:01:23]}  Bd7 {[%clk 0:02:07]} 18. c4 {[%clk 0:01:22]}  d4 {[%clk 0:02:07]} 19. Bd3 {[%clk 0:01:13]}  e5 {[%clk 0:02:00]} 20. Be4 {[%clk 0:01:08]}  Be6 {[%clk 0:01:57]} 21. Bd5 {[%clk 0:01:07]}  Bxd5 {[%clk 0:01:39]} 22. cxd5 {[%clk 0:01:07]}  Ne7 {[%clk 0:01:39]} 23. Rc1 {[%clk 0:01:01]}  Qd6 {[%clk 0:01:38]} 24. Qa5 {[%clk 0:00:57]}  Nxd5 {[%clk 0:01:32]} 25. Qxa7 {[%clk 0:00:55]}  Nf4 {[%clk 0:01:24]} 26. Rb1 {[%clk 0:00:27]}  Qd5 {[%clk 0:00:56]} 27. Qxb7 {[%clk 0:00:26]}  Qxa2 {[%clk 0:00:56]} 28. Rb2 {[%clk 0:00:19]}  Qe6 {[%clk 0:00:51]} 29. Qe4 {[%clk 0:00:18]}  Qg6 {[%clk 0:00:42]} 30. Qxg6 {[%clk 0:00:17]}  hxg6 {[%clk 0:00:42]} 31. Re1 {[%clk 0:00:17]}  Nd3 {[%clk 0:00:40]} 32. Rbe2 {[%clk 0:00:15]}  Nxe1 {[%clk 0:00:40]} 33. Rxe1 {[%clk 0:00:16]}  f6 {[%clk 0:00:41]} 34. f4 {[%clk 0:00:15]}  Re8 {[%clk 0:00:38]} 35. fxe5 {[%clk 0:00:14]}  fxe5 {[%clk 0:00:38]} 36. Kf2 {[%clk 0:00:14]}  e4 {[%clk 0:00:37]} 37. Kg3 {[%clk 0:00:14]}  e3 {[%clk 0:00:34]} 38. Kf3 {[%clk 0:00:13]}  Kf7 {[%clk 0:00:28]} 39. Ke2 {[%clk 0:00:09]}  Ke6 {[%clk 0:00:25]} 40. Kd3 {[%clk 0:00:09]}  Ke5 {[%clk 0:00:23]} 41. Ra1 {[%clk 0:00:08]}  Kf4 {[%clk 0:00:14]} 42. Rf1+ {[%clk 0:00:07]}  Kg4 {[%clk 0:00:12]} 43. Kxd4 {[%clk 0:00:07]}  e2 {[%clk 0:00:11]} 44. Re1 {[%clk 0:00:07]}  Kf4 {[%clk 0:00:10]} 45. Kd3 {[%clk 0:00:07]}  Rd8+ {[%clk 0:00:08]} 46. Kxe2 {[%clk 0:00:08]}  Re8+ {[%clk 0:00:08]} 47. Kf2 {[%clk 0:00:08]}  Rxe1 {[%clk 0:00:09]} 48. Kxe1 {[%clk 0:00:09]}  Ke3 {[%clk 0:00:09]} 49. Kf1 {[%clk 0:00:10]}  g5 {[%clk 0:00:09]} 50. Ke1 {[%clk 0:00:09]}  g6 {[%clk 0:00:08]} 51. Kf1 {[%clk 0:00:10]}  g4 {[%clk 0:00:09]} 52. Ke1 {[%clk 0:00:10]}  Kf4 {[%clk 0:00:09]} 53. Kf2 {[%clk 0:00:09]}  g3+ {[%clk 0:00:10]} 54. hxg3+ {[%clk 0:00:06]}  Kg4 {[%clk 0:00:10]} 55. Kg1 {[%clk 0:00:05]}  Kxg3 {[%clk 0:00:10]} 56. Kf1 {[%clk 0:00:06]}  g5 {[%clk 0:00:11]} 57. Kg1 {[%clk 0:00:06]}  g4 {[%clk 0:00:11]} 58. Kf1 {[%clk 0:00:06]}  Kh2 {[%clk 0:00:11]} 59. Kf2 {[%clk 0:00:06]}  Kh1 {[%clk 0:00:09]} 60. Kg3 {[%clk 0:00:04]}  Kg1 {[%clk 0:00:10]} 61. Kxg4 {[%clk 0:00:04]}  Kxg2 {[%clk 0:00:10]} 1/2-1/2


[Site "https://www.chess.com"]